lending/lending_fUSD_20240806
["ID","MTS","AMOUNT","RATE_DAILY","PERIOD"]
[334325582,1722977445045,-153.75,0.0001099,2]
[334325583,1722977445054,-153.75,0.0001099,2]
[334325584,1722977445064,-153.75,0.0001099,2]
[334325585,1722977445073,-153.75,0.0001099,2]
[334325586,1722977445083,-153.75,0.0001099,2]
[334325587,1722977445092,-153.75,0.0001099,2]
[334325588,1722977445101,-153.75,0.0001099,2]
[334325589,1722977445111,-153.75,0.0001099,2]
[334325590,1722977445120,-192.0111529,0.0001099,2]
[334325591,1722977445130,-750.0,0.00010995,2]
[334325592,1722977445141,-3359.97568238,0.00010998,2]
[334325593,1722977445151,-151.0,0.00010999,2]
[334325594,1722977445160,-151.0,0.00010999,2]
[334325595,1722977445169,-151.0,0.00010999,2]
[334325596,1722977445179,-151.0,0.00010999,2]
[334325597,1722977445188,-151.0,0.00010999,2]
[334325598,1722977445198,-151.0,0.00010999,2]
[334325599,1722977445207,-151.0,0.00010999,2]
[334325600,1722977445217,-151.0,0.00010999,2]
[334325601,1722977445226,-151.0,0.00010999,2]
[334325602,1722977445235,-151.0,0.00010999,2]
[334325603,1722977445245,-158.347116,0.00010999,2]
[334325604,1722977445256,-151.0,0.00010999,2]
[334325605,1722977445266,-158.347116,0.00010999,2]
[334325606,1722977445277,-151.0,0.00010999,2]
[334325607,1722977445288,-151.0,0.00010999,2]
[334325608,1722977445298,-151.0,0.00010999,2]
[334325609,1722977445308,-151.0,0.00010999,2]
[334325610,1722977445317,-151.0,0.00010999,2]
[334325611,1722977445327,-912.067606,0.00010999,2]
[334325612,1722977445338,-912.067606,0.00010999,2]
[334325613,1722977445361,-151.0,0.00010999,2]
[334325614,1722977445372,-151.0,0.00010999,2]
[334325615,1722977445382,-151.0,0.00010999,2]
[334325616,1722977445391,-238.891626,0.00010999,2]
[334325617,1722977445401,-151.0,0.00010999,2]
[334325618,1722977445410,-238.891626,0.00010999,2]
[334325619,1722977445420,-151.0,0.00010999,2]
[334325620,1722977445430,-151.0,0.00010999,2]
[334325621,1722977445439,-151.0,0.00010999,2]
[334325622,1722977445448,-159.138066,0.00010999,2]
[334325623,1722977445458,-151.0,0.00010999,2]
[334325624,1722977445467,-199.858899,0.00010999,2]
[334325625,1722977445477,-199.858899,0.00010999,2]
[334325626,1722977445487,-217.863572,0.00010999,2]
[334325627,1722977445496,-161.106399,0.00010999,2]
[334325628,1722977445505,-161.106399,0.00010999,2]
[334325629,1722977445515,-151.0,0.00010999,2]
[334325630,1722977445524,-151.0,0.00010999,2]
[334325631,1722977445533,-151.0,0.00010999,2]
[334325632,1722977445543,-151.0,0.00010999,2]
[334325633,1722977445553,-151.0,0.00010999,2]
[334325634,1722977445562,-151.0,0.00010999,2]
[334325635,1722977445572,-151.0,0.00010999,2]
[334325636,1722977445581,-275.28760397,0.00010999,2]
[334325648,1722977446667,-200.0,0.00010973,2]
[334325649,1722977446677,-872.62236,0.00010999,2]
[334325650,1722977446694,-470.39356303,0.00010999,2]
[334325653,1722977447473,-153.18864,0.00010395,2]
[334325654,1722977447484,-450.09,0.000105,2]
[334325655,1722977447496,-338.327336,0.00010999,2]
[334325656,1722977447506,-151.0,0.00010999,2]
[334325657,1722977447516,-1956.630863,0.00010999,2]
[334325658,1722977447526,-166.85438,0.00010999,2]
[334325659,1722977447536,-151.0,0.00010999,2]
[334325660,1722977447546,-151.0,0.00010999,2]
[334325661,1722977447555,-151.0,0.00010999,2]
[334325662,1722977447566,-544.0,0.00010999,2]
[334325663,1722977447576,-5959.30196309,0.00010999,2]
[334325664,1722977447602,-410.00625,0.00010999,2]
[334325666,1722977538333,450.0,0.00025,60]
[334325671,1722977715621,500.0,0.00025,60]
[334325672,1722977777214,5745.16,0.00021589,30]
[334325673,1722977787979,199.83,8.266e-05,2]
[334325674,1722977820565,500.0,0.00025,60]
[334325678,1722977896981,500.0,0.00025,60]
[334325681,1722977914982,594379.40147231,0.00024657,30]
[334325694,1722978230467,508.2,0.00024657,30]
[334325695,1722978248851,5266.39,0.00021589,30]
[334325696,1722978318636,189.83,8.219e-05,2]
[334325812,1722978631523,-160.47,9.982e-05,2]
[334325813,1722978631533,-300.0,9.999e-05,2]
[334325814,1722978631543,-166.57544896,0.0001,2]
[334325815,1722978631583,-4624.22384602,0.0001,2]
[334325816,1722978631593,-1010.07607352,0.0001,15]
[334325817,1722978631602,-1550.0,0.0001,2]
[334325818,1722978631611,-1000.0,0.00010001,2]
[334325819,1722978631622,-173.32,0.00010013,2]
[334325820,1722978631631,-965.9951,0.000104,2]
[334325821,1722978631640,-189.83,0.00010474,2]
[334325822,1722978631653,-162.79,0.000105,2]
[334325823,1722978631662,-521.06,0.000105,2]
[334325824,1722978631671,-318.84,0.0001053,2]
[334325825,1722978631682,-4328.8,0.0001053,2]
[334325826,1722978631691,-499.99,0.0001053,2]
[334325827,1722978631700,-1583.0,0.0001055,2]
[334325828,1722978631710,-555.0,0.0001055,2]
[334325829,1722978631720,-841.46,0.00010649,2]
[334325830,1722978631732,-166.59,0.00010768,2]
[334325831,1722978631745,-1049.84272767,0.0001089,2]
[334325832,1722978631755,-4750.9552,0.000109,2]
[334325833,1722978631764,-290.4654,0.000109,2]
[334325834,1722978631774,-11130.3814,0.000109,2]
[334325835,1722978631783,-7500.0,0.000109,2]
[334325836,1722978631792,-150.0,0.00010959,2]
[334325837,1722978631801,-250.0,0.00010959,2]
[334325838,1722978631810,-2000.0,0.00010959,2]
[334325839,1722978631819,-704.07,0.00010959,2]
[334325841,1722978631829,-586.72,0.00010959,2]
[334325842,1722978631838,-488.93,0.00010959,2]
[334325843,1722978631847,-407.45,0.00010959,2]
[334325844,1722978631856,-339.54,0.00010959,2]
[334325845,1722978631865,-282.95,0.00010959,2]
[334325846,1722978631874,-235.79,0.00010959,2]
[334325847,1722978631884,-200.0,0.00010973,2]
[334325848,1722978631893,-1694.6950956,0.00010992,2]
[334325849,1722978631905,-1800.61673734,0.00010992,2]
[334325850,1722978631916,-968.08911481,0.00010992,2]
[334325851,1722978631937,-6599.90554356,0.00010992,2]
[334325854,1722978631959,-2280.57713759,0.00010992,2]
[334325863,1722978637380,-196.49,0.00010959,2]
[334325864,1722978637390,-117.509999,0.00010992,2]
[334325865,1722978637401,-300.0,0.00010992,2]
[334325868,1722978637444,-2600.501728,0.00010992,2]
[334325870,1722978637453,-150.01,0.00010998,2]
[334325872,1722978637463,-795.45097876,0.00010998,2]
[334325873,1722978637615,-5156.37091641,0.00010998,2]
[334325874,1722978637625,-99.55149702,0.00010999,2]
[334325975,1722978782898,4827.52,0.00021589,30]
[334325976,1722978814431,500.0,0.00024657,30]
[334325977,1722978907143,190.43,8.291e-05,2]
[334325979,1722978988440,163.35261377,8.291e-05,2]
[334325980,1722978988463,2919.29813312,8.291e-05,2]
[334325992,1722979030580,151.080706,0.00024657,32]
[334325995,1722979040357,151.080706,0.00024657,32]
[334325996,1722979043543,151.080706,0.00024657,32]
[334325997,1722979045403,151.080706,0.00024657,32]
[334325998,1722979045957,151.080706,0.00024657,32]
[334325999,1722979046481,151.080706,0.00024657,32]
[334326000,1722979052162,151.080706,0.00024657,33]
[334326001,1722979053054,151.080706,0.00024657,33]
[334326002,1722979053939,151.080706,0.00024657,33]
[334326003,1722979054843,151.080706,0.00024657,33]
[334326004,1722979061506,151.080706,0.00024657,33]
[334326005,1722979062836,151.080706,0.00024657,33]
[334326006,1722979243517,4425.22,0.00021589,30]
[334326007,1722979399604,180.9,8.219e-05,2]
[334326008,1722979406676,500.0,0.00024657,30]
[334326033,1722979721949,4056.45,0.00021589,30]
[334326112,1722979832626,-169.1,0.00010093,2]
[334326113,1722979832636,-166.59,0.00010131,2]
[334326114,1722979832646,-1000.0,0.00010209,2]
[334326115,1722979832655,-180.9,0.00010483,2]
[334326116,1722979832665,-354.32,0.000105,2]
[334326117,1722979832674,-1583.0,0.000106,2]
[334326118,1722979832683,-555.0,0.000106,2]
[334326119,1722979832693,-300.0,0.00010899,2]
[334326120,1722979832703,-150.0,0.00010899,2]
[334326121,1722979832712,-153223.64999236,0.000109,2]
[334326122,1722979832725,-5634.42666,0.000109,2]
[334326123,1722979832746,-8508.54387818,0.000109,2]
[334326124,1722979832758,-1000.5000036,0.000109,2]
[334326125,1722979832769,-491.80177205,0.000109,2]
[334326126,1722979832845,-6505.2,0.000109,2]
[334326127,1722979832858,-11360.65198285,0.000109,2]
[334326128,1722979832871,-488.31381096,0.000109,2]
[334326129,1722979832881,-556.84792432,0.000109,2]
[334326130,1722979832891,-157.88976836,0.000109,2]
[334326131,1722979832900,-163.06583263,0.000109,2]
[334326132,1722979832909,-150.0,0.00010959,2]
[334326133,1722979832919,-250.0,0.00010959,2]
[334326134,1722979832929,-2000.0,0.00010959,2]
[334326135,1722979832938,-163.74,0.00010959,2]
[334326136,1722979832948,-90.1978612,0.00010959,2]
[334326143,1722979837856,-403.11617119,0.00010959,5]
[334326345,1722979839973,-606.43908688,0.00010959,5]
[334327452,1722979892469,162.81,8.373e-05,2]
[334327475,1722980020404,500.0,0.00024657,30]
[334327480,1722980200392,3718.41,0.00021589,30]
[334327482,1722980545076,154.66,8.219e-05,2]
[334327483,1722980607419,500.0,0.00024657,30]
[334327484,1722980664485,3408.54,0.00021589,30]
[334327575,1722981032499,-960.28276968,9.89e-05,2]
[334327576,1722981032526,-2480.12615262,9.89e-05,2]
[334327577,1722981032538,-624.43044788,9.89e-05,2]
[334327578,1722981032549,-6004.92195362,9.89e-05,2]
[334327579,1722981032568,-12610.1786762,9.89e-05,2]
[334327580,1722981032577,-167.15,9.89e-05,2]
[334327581,1722981032586,-250.0,9.89e-05,2]
[334327582,1722981032596,-169.1,9.927e-05,2]
[334327583,1722981032605,-170.36,9.956e-05,2]
[334327584,1722981032615,-150.0,9.973e-05,2]
[334327585,1722981032624,-1550.0,0.0001,2]
[334327586,1722981032634,-198.08,0.00010007,2]
[334327587,1722981032644,-834.77,0.000101,2]
[334327588,1722981032654,-499.99,0.000101,2]
[334327589,1722981032664,-1000.0,0.00010123,2]
[334327590,1722981032674,-154.66,0.00010473,2]
[334327591,1722981032683,-6249.44,0.000105,2]
[334327592,1722981032693,-389.75,0.000105,2]
[334327593,1722981032703,-1189.0,0.000106,2]
[334327594,1722981032713,-953.142,0.00010646,2]
[334327595,1722981032723,-448.0,0.00010646,2]
[334327596,1722981032732,-16044.94262183,0.000108,2]
[334327597,1722981032744,-323.745,0.000108,2]
[334327598,1722981032755,-387.02289021,0.000108,2]
[334327599,1722981032780,-768.82318234,0.000108,2]
[334327600,1722981032792,-6596.95029758,0.000108,2]
[334327612,1722981037842,-75878.51600804,0.000108,2]
[334327613,1722981037853,-1000.0,0.000108,2]
[334327614,1722981037863,-129863.7627,0.000108,2]
[334327615,1722981037873,-7500.0,0.00010899,2]
[334327616,1722981037883,-3000.0,0.000109,2]
[334327617,1722981037892,-182.03519034,0.000109,2]
[334327618,1722981037902,-152.75549015,0.000109,2]
[334327619,1722981037912,-2452.78161944,0.000109,2]
[334327620,1722981037922,-163.06583263,0.000109,2]
[334327621,1722981037933,-2772.37819552,0.000109,2]
[334327622,1722981037942,-150.0,0.00010959,2]
[334327623,1722981037953,-250.0,0.00010959,2]
[334327624,1722981037963,-208.96,0.00010959,2]
[334327625,1722981037972,-174.14,0.00010959,2]
[334327626,1722981037982,-2000.0,0.00010959,2]
[334327627,1722981037992,-870.7,0.00010959,2]
[334327628,1722981038002,-1896.44138,0.00010959,2]
[334327629,1722981038011,-200.0,0.00010973,2]
[334327630,1722981038021,-154.83,0.00010989,2]
[334327631,1722981038030,-154.83,0.0001099,2]
[334327632,1722981038042,-439.35580365,0.00010991,2]
[334327633,1722981038051,-448.22107204,0.00010991,2]
[334327634,1722981038061,-151.0,0.00010992,2]
[334327635,1722981038070,-151.0,0.00010992,2]
[334327636,1722981038080,-151.0,0.00010992,2]
[334327637,1722981038089,-151.0,0.00010992,2]
[334327638,1722981038099,-151.0,0.00010992,2]
[334327639,1722981038108,-151.0,0.00010992,2]
[334327640,1722981038118,-151.0,0.00010992,2]
[334327642,1722981038127,-151.0,0.00010992,2]
[334327644,1722981038137,-151.0,0.00010992,2]
[334327646,1722981038147,-151.0,0.00010992,2]
[334327648,1722981038156,-151.0,0.00010992,2]
[334327650,1722981038166,-151.0,0.00010992,2]
[334327652,1722981038175,-151.0,0.00010992,2]
[334327654,1722981038185,-151.0,0.00010992,2]
[334327656,1722981038194,-151.0,0.00010992,2]
[334327658,1722981038203,-151.0,0.00010992,2]
[334327660,1722981038213,-151.0,0.00010992,2]
[334327662,1722981038222,-151.0,0.00010992,2]
[334327664,1722981038231,-151.0,0.00010992,2]
[334327666,1722981038241,-159.88712,0.00010992,2]
[334327668,1722981038251,-151.0,0.00010992,2]
[334327670,1722981038260,-159.88712,0.00010992,2]
[334327672,1722981038272,-151.0,0.00010992,2]
[334327674,1722981038281,-151.0,0.00010992,2]
[334327677,1722981038292,-236.7875329,0.00010992,2]
[334327679,1722981038303,-151.0,0.00010992,2]
[334327680,1722981038313,-151.0,0.00010992,2]
[334327682,1722981038325,-151.0,0.00010992,2]
[334327685,1722981038335,-151.0,0.00010992,2]
[334327686,1722981038345,-317.219494,0.00010992,2]
[334327688,1722981038354,-317.219494,0.00010992,2]
[334327690,1722981038364,-217.70529,0.00010992,2]
[334327693,1722981038377,-17686.131258,0.00010992,2]
[334327695,1722981038386,-234.942505,0.00010992,2]
[334327697,1722981038396,-151.0,0.00010992,2]
[334327699,1722981038406,-234.942505,0.00010992,2]
[334327701,1722981038416,-151.0,0.00010992,2]
[334327702,1722981038426,-151.0,0.00010992,2]
[334327705,1722981038442,-151.0,0.00010992,2]
[334327707,1722981038453,-151.0,0.00010992,2]
[334327709,1722981038463,-151.0,0.00010992,2]
[334327711,1722981038472,-151.0,0.00010992,2]
[334327713,1722981038484,-151.0,0.00010992,2]
[334327715,1722981038494,-151.0,0.00010992,2]
[334327717,1722981038504,-9510.0588106,0.00010992,2]
[334327719,1722981038516,-151.0,0.00010992,2]
[334327721,1722981038525,-729.654085,0.00010992,2]
[334327723,1722981038534,-729.654085,0.00010992,2]
[334327725,1722981038544,-151.0,0.00010992,2]
[334327727,1722981038553,-1782.708119,0.00010992,2]
[334327729,1722981038562,-151.0,0.00010992,2]
[334327731,1722981038572,-1782.708119,0.00010992,2]
[334327733,1722981038581,-151.0,0.00010992,2]
[334327735,1722981038590,-25667.5630916,0.00010992,2]
[334327737,1722981038600,-151.0,0.00010992,2]
[334327739,1722981038610,-151.0,0.00010992,2]
[334327741,1722981038619,-4206.9556829,0.00010992,2]
[334327743,1722981038629,-32957.2628596,0.00010992,2]
[334327745,1722981038639,-151.0,0.00010997,2]
[334327747,1722981038648,-151.0,0.00010997,2]
[334327749,1722981038657,-151.0,0.00010997,2]
[334327751,1722981038667,-151.0,0.00010997,2]
[334327753,1722981038676,-151.0,0.00010997,2]
[334327755,1722981038685,-151.0,0.00010997,2]
[334327757,1722981038695,-151.0,0.00010997,2]
[334327759,1722981038704,-151.0,0.00010997,2]
[334327761,1722981038713,-262.261412,0.00010997,2]
[334327763,1722981038723,-151.0,0.00010997,2]
[334327765,1722981038732,-729.654085,0.00010997,2]
[334327766,1722981038741,-729.654085,0.00010997,2]
[334327768,1722981038751,-151.0,0.00010997,2]
[334327770,1722981038760,-1782.708119,0.00010997,2]
[334327772,1722981038777,-151.0,0.00010997,2]
[334327774,1722981038786,-1782.708119,0.00010997,2]
[334327776,1722981038796,-151.0,0.00010997,2]
[334327820,1722981039201,-151.0,0.00010997,2]
[334327822,1722981039223,-151.0,0.00010997,2]
[334327824,1722981039233,-151.0,0.00010997,2]
[334327826,1722981039243,-254.365976,0.00010997,2]
[334327828,1722981039252,-254.365976,0.00010997,2]
[334327830,1722981039262,-151.0,0.00010997,2]
[334327832,1722981039272,-151.0,0.00010997,2]
[334327834,1722981039282,-151.0,0.00010997,2]
[334327836,1722981039292,-1469.079068,0.00010997,2]
[334327838,1722981039302,-1469.079068,0.00010997,2]
[334327840,1722981039313,-191.113301,0.00010997,2]
[334327842,1722981039322,-191.113301,0.00010997,2]
[334327844,1722981039331,-151.0,0.00010997,2]
[334327846,1722981039341,-151.0,0.00010997,2]
[334327848,1722981039351,-3900.79168992,0.00010997,2]
[334327850,1722981039361,-150.01,0.00010998,2]
[334327852,1722981039373,-1521.15731311,0.00010998,2]
[334327854,1722981039383,-151.0,0.00010998,2]
[334327856,1722981039393,-151.0,0.00010998,2]
[334327858,1722981039404,-151.0,0.00010998,2]
[334327860,1722981039414,-317.219494,0.00010998,2]
[334327862,1722981039424,-317.219494,0.00010998,2]
[334327864,1722981039437,-234.942505,0.00010998,2]
[334327866,1722981039447,-151.0,0.00010998,2]
[334327868,1722981039458,-234.942505,0.00010998,2]
[334327870,1722981039468,-151.0,0.00010998,2]
[334327871,1722981039478,-151.0,0.00010998,2]
[334327873,1722981039489,-151.0,0.00010998,2]
[334327875,1722981039499,-151.0,0.00010998,2]
[334327877,1722981039510,-151.0,0.00010998,2]
[334327879,1722981039522,-151.0,0.00010998,2]
[334327882,1722981039532,-48705.81719651,0.00010999,2]
[334327883,1722981039542,-1000.0,0.00010999,2]
[334327885,1722981039551,-1000.0,0.00010999,2]
[334327887,1722981039560,-1000.0,0.00010999,2]
[334327889,1722981039571,-1000.0,0.00010999,2]
[334327892,1722981039582,-1000.0,0.00010999,2]
[334327894,1722981039592,-1000.0,0.00010999,2]
[334327895,1722981039603,-1000.0,0.00010999,2]
[334327897,1722981039613,-1000.0,0.00010999,2]
[334327899,1722981039623,-1000.0,0.00010999,2]
[334327901,1722981039633,-1000.0,0.00010999,2]
[334327903,1722981039643,-1000.0,0.00010999,2]
[334327905,1722981039653,-1000.0,0.00010999,2]
[334327907,1722981039662,-1000.0,0.00010999,2]
[334327909,1722981039672,-1000.0,0.00010999,2]
[334327911,1722981039681,-1000.0,0.00010999,2]
[334327913,1722981039691,-1000.0,0.00010999,2]
[334327915,1722981039701,-1000.0,0.00010999,2]
[334327917,1722981039711,-1000.0,0.00010999,2]
[334327919,1722981039721,-1000.0,0.00010999,2]
[334327921,1722981039730,-1000.0,0.00010999,2]
[334327923,1722981039740,-1000.0,0.00010999,2]
[334327925,1722981039750,-1000.0,0.00010999,2]
[334327927,1722981039760,-1000.0,0.00010999,2]
[334327929,1722981039769,-1000.0,0.00010999,2]
[334327931,1722981039779,-1000.0,0.00010999,2]
[334327932,1722981039788,-1000.0,0.00010999,2]
[334327934,1722981039797,-1000.0,0.00010999,2]
[334327935,1722981039807,-1000.0,0.00010999,2]
[334327936,1722981039818,-1000.0,0.00010999,2]
[334327938,1722981039828,-1000.0,0.00010999,2]
[334327940,1722981039837,-292.93477054,0.00010999,2]
[334327941,1722981039847,-1166.94953749,0.00010999,3]
[334327943,1722981039857,-23791.03709059,0.00010999,2]
[334327944,1722981039866,-151.0,0.00010999,2]
[334327945,1722981039876,-151.0,0.00010999,2]
[334327946,1722981039886,-151.0,0.00010999,2]
[334327947,1722981039896,-151.0,0.00010999,2]
[334327948,1722981039906,-151.415143,0.00010999,2]
[334327949,1722981039916,-151.0,0.00010999,2]
[334327950,1722981039926,-151.0,0.00010999,2]
[334327951,1722981039935,-151.0,0.00010999,2]
[334327952,1722981039945,-244.490439,0.00010999,2]
[334327953,1722981039955,-151.0,0.00010999,2]
[334327954,1722981039965,-151.0,0.00010999,2]
[334327956,1722981039975,-240.326735,0.00010999,2]
[334327958,1722981039985,-151.0,0.00010999,2]
[334327960,1722981039995,-227.718748,0.00010999,2]
[334327962,1722981040004,-151.0,0.00010999,2]
[334327964,1722981040014,-151.0,0.00010999,2]
[334327966,1722981040024,-151.0,0.00010999,2]
[334327968,1722981040033,-151.0,0.00010999,2]
[334327970,1722981040044,-151.0,0.00010999,2]
[334327972,1722981040055,-151.0,0.00010999,2]
[334327974,1722981040065,-151.0,0.00010999,2]
[334327976,1722981040074,-294.299051,0.00010999,2]
[334327978,1722981040084,-152.027268,0.00010999,2]
[334327980,1722981040094,-151.0,0.00010999,2]
[334327982,1722981040103,-151.0,0.00010999,2]
[334327984,1722981040113,-151.0,0.00010999,2]
[334327986,1722981040124,-151.0,0.00010999,2]
[334327988,1722981040135,-151.0,0.00010999,2]
[334327990,1722981040146,-151.0,0.00010999,2]
[334327992,1722981040156,-151.0,0.00010999,2]
[334327994,1722981040166,-159.88712,0.00010999,2]
[334327997,1722981040177,-151.0,0.00010999,2]
[334327999,1722981040188,-159.88712,0.00010999,2]
[334328001,1722981040197,-151.0,0.00010999,2]
[334328003,1722981040207,-159.88712,0.00010999,2]
[334328005,1722981040216,-159.88712,0.00010999,2]
[334328007,1722981040226,-151.0,0.00010999,2]
[334328009,1722981040235,-151.0,0.00010999,2]
[334328011,1722981040244,-151.0,0.00010999,2]
[334328013,1722981040255,-151.0,0.00010999,2]
[334328015,1722981040266,-151.0,0.00010999,2]
[334328017,1722981040276,-151.0,0.00010999,2]
[334328019,1722981040285,-201.725252,0.00010999,2]
[334328021,1722981040295,-151.0,0.00010999,2]
[334328023,1722981040305,-151.0,0.00010999,2]
[334328025,1722981040315,-317.219494,0.00010999,2]
[334328027,1722981040324,-317.219494,0.00010999,2]
[334328029,1722981040334,-317.219494,0.00010999,2]
[334328031,1722981040344,-317.219494,0.00010999,2]
[334328033,1722981040353,-234.942505,0.00010999,2]
[334328035,1722981040363,-234.942505,0.00010999,2]
[334328037,1722981040373,-151.0,0.00010999,2]
[334328039,1722981040382,-189.935044,0.00010999,2]
[334328041,1722981040392,-234.942505,0.00010999,2]
[334328043,1722981040401,-234.942505,0.00010999,2]
[334328045,1722981040418,-151.0,0.00010999,2]
[334328047,1722981040427,-151.0,0.00010999,2]
[334328049,1722981040439,-151.0,0.00010999,2]
[334328051,1722981040449,-151.0,0.00010999,2]
[334328053,1722981040458,-151.0,0.00010999,2]
[334328055,1722981040467,-151.0,0.00010999,2]
[334328057,1722981040479,-151.0,0.00010999,2]
[334328059,1722981040488,-151.0,0.00010999,2]
[334328061,1722981040497,-151.0,0.00010999,2]
[334328063,1722981040507,-151.0,0.00010999,2]
[334328065,1722981040516,-151.0,0.00010999,2]
[334328067,1722981040526,-729.654085,0.00010999,2]
[334328069,1722981040536,-729.654085,0.00010999,2]
[334328072,1722981040545,-729.654085,0.00010999,2]
[334328074,1722981040554,-729.654085,0.00010999,2]
[334328076,1722981040565,-190.503342,0.00010999,2]
[334328078,1722981040574,-1782.708119,0.00010999,2]
[334328080,1722981040583,-1782.708119,0.00010999,2]
[334328082,1722981040592,-151.0,0.00010999,2]
[334328084,1722981040601,-151.0,0.00010999,2]
[334328085,1722981040610,-1782.708119,0.00010999,2]
[334328087,1722981040619,-1782.708119,0.00010999,2]
[334328090,1722981040628,-151.0,0.00010999,2]
[334328092,1722981040638,-201.971588,0.00010999,2]
[334328094,1722981040647,-151.0,0.00010999,2]
[334328095,1722981040657,-151.0,0.00010999,2]
[334328097,1722981040666,-151.0,0.00010999,2]
[334328099,1722981040675,-254.365976,0.00010999,2]
[334328101,1722981040685,-254.365976,0.00010999,2]
[334328103,1722981040695,-254.365976,0.00010999,2]
[334328105,1722981040705,-254.365976,0.00010999,2]
[334328107,1722981040714,-151.0,0.00010999,2]
[334328109,1722981040723,-151.0,0.00010999,2]
[334328111,1722981040733,-151.0,0.00010999,2]
[334328113,1722981040742,-151.0,0.00010999,2]
[334328115,1722981040751,-151.0,0.00010999,2]
[334328117,1722981040760,-1469.079068,0.00010999,2]
[334328119,1722981040770,-1469.079068,0.00010999,2]
[334328121,1722981040780,-1469.079068,0.00010999,2]
[334328123,1722981040789,-1469.079068,0.00010999,2]
[334328125,1722981040798,-191.113301,0.00010999,2]
[334328127,1722981040808,-191.113301,0.00010999,2]
[334328129,1722981040817,-191.113301,0.00010999,2]
[334328131,1722981040826,-223.60252,0.00010999,2]
[334328133,1722981040836,-191.113301,0.00010999,2]
[334328135,1722981040845,-151.0,0.00010999,2]
[334328137,1722981040855,-151.0,0.00010999,2]
[334328139,1722981040864,-275.534564,0.00010999,2]
[334328141,1722981040873,-151.0,0.00010999,2]
[334328143,1722981040883,-151.0,0.00010999,2]
[334328145,1722981040892,-500.0,0.00010999,2]
[334328147,1722981040901,-582.88430108,0.00010999,2]
[334328149,1722981040911,-26676.69178691,0.00010999,2]
[334328151,1722981040920,-589.0,0.00011,2]
[334328153,1722981040929,-285187.59569874,0.00011,2]
[334328155,1722981040939,-18212.0,0.00011,2]
[334328157,1722981040948,-284128.53921299,0.00011,2]
[334328159,1722981040958,-192630.66219851,0.00011,2]
[334328162,1722981040973,-6045.54035109,0.00011,2]
[334328164,1722981040984,-685.11418603,0.00011,2]
[334328166,1722981040995,-1297.34844736,0.00011,2]
[334328170,1722981041024,-3087.49706933,0.00011,2]
[334328235,1722981042005,-907.5815737,0.00010899,2]
[334328236,1722981042017,-376.11371023,0.00010899,2]
[334328326,1722981046347,-6216.30471607,0.00010899,2]
[334328328,1722981046357,-985.04970203,0.000109,2]
[334328330,1722981046368,-151.0,0.00010998,2]
[334328332,1722981046378,-151.0,0.00010999,2]
[334328333,1722981046388,-103724.32914655,0.00011,2]
[334328360,1722981142424,154.66,8.983e-05,2]
[334328363,1722981151628,3124.49,0.00021589,30]
[334328375,1722981203014,500.0,0.00024657,30]
[334328380,1722981411181,1013.57619934,0.00024658,30]
[334328392,1722981657805,154.66,8.219e-05,2]
[334328393,1722981688053,2864.11,0.00021589,30]